bitfinex/quotes_SOLUSD_20251120
["timestamp","ask_amount","ask_price","bid_price","bid_amount"]
[1763666532787,50.0,132.69,132.61,7.90394259]
[1763666532788,7.90394259,132.66,132.61,7.90394259]
[1763666532980,0.7,132.68,132.64,7.90394259]
[1763666533297,0.7,132.68,132.65,7.90394259]
[1763666533810,0.2,132.73,132.67,7.90394259]
[1763666534012,0.2,132.73,132.67,163.8]
[1763666534013,58.80394259,132.73,132.67,163.8]
[1763666534313,7.90394259,132.72,132.67,163.8]
[1763666534474,8.60394259,132.72,132.67,171.70394259]
[1763666534675,0.7,132.71,132.67,171.70394259]
[1763666534886,0.7,132.71,132.67,163.8]
[1763666535103,0.7,132.71,132.67,171.70394259]
[1763666535303,0.9,132.73,132.69,7.90394259]
[1763666535502,0.9,132.73,132.69,171.70394259]
[1763666535706,0.7,132.72,132.69,171.70394259]
[1763666536020,0.7,132.72,132.69,163.8]
[1763666536180,8.10394259,132.73,132.69,171.70394259]
[1763666536181,0.2,132.73,132.69,171.70394259]
[1763666536380,0.7,132.72,132.69,171.70394259]
[1763666536896,0.2,132.73,132.69,171.70394259]
[1763666537090,0.9,132.73,132.7,7.90394259]
[1763666537403,0.2,132.73,132.7,171.70394259]
[1763666537580,0.2,132.73,132.71,7.90394259]
[1763666537775,0.2,132.73,132.7,163.8]
[1763666538077,0.9,132.73,132.7,61.2]
[1763666538489,0.7,132.72,132.7,61.2]
[1763666540605,0.2,132.73,132.7,7.90394259]
[1763666540786,0.89,132.73,132.7,7.90394259]
[1763666540980,0.89,132.73,132.66,63.76]
[1763666541178,0.89,132.73,132.69,7.90394259]
[1763666541584,0.69,132.72,132.68,7.90394259]
[1763666542086,0.69,132.72,132.67,0.72]
[1763666542087,0.69,132.72,132.69,7.90394259]
[1763666542704,0.69,132.72,132.67,7.90394259]
[1763666542912,0.89,132.73,132.69,7.90394259]
[1763666543083,0.69,132.72,132.69,7.90394259]
[1763666543484,0.2,132.73,132.71,7.90394259]
[1763666543714,0.2,132.73,132.72,7.90394259]
[1763666544508,0.2,132.73,132.7,7.90394259]
[1763666544509,0.89,132.73,132.7,7.90394259]
[1763666544687,0.89,132.73,132.69,7.90394259]
[1763666545508,0.89,132.73,132.7,7.90394259]
[1763666545695,0.89,132.73,132.67,0.72]
[1763666545892,0.2,132.73,132.71,7.90394259]
[1763666546491,0.2,132.73,132.72,7.90394259]
[1763666546799,0.69,132.76,132.73,61.0]
[1763666547282,0.69,132.76,132.73,68.90394259]
[1763666547705,0.69,132.76,132.73,163.6]
[1763666547907,0.69,132.76,132.73,171.50394259]
[1763666548211,0.1,132.77,132.74,7.90394259]
[1763666548517,0.79,132.77,132.73,163.6]
[1763666548718,0.79,132.77,132.66,10.50691199]
[1763666548719,8.69394259,132.77,132.69,0.72]
[1763666548888,58.69394259,132.77,132.71,7.90394259]
[1763666549087,8.59394259,132.76,132.71,7.90394259]
[1763666549288,8.59394259,132.76,132.7,7.90394259]
[1763666549517,0.69,132.75,132.7,7.90394259]
[1763666549695,8.59394259,132.75,132.7,7.90394259]
[1763666550095,0.67,132.74,132.7,7.90394259]
[1763666550402,8.57394259,132.74,132.69,7.90394259]
[1763666550604,8.57394259,132.74,132.68,7.90394259]
[1763666550805,0.67,132.73,132.68,7.90394259]
[1763666550988,7.90394259,132.72,132.66,7.90394259]
[1763666551383,7.90394259,132.72,132.64,0.71]
[1763666551384,0.67,132.71,132.67,7.90394259]
[1763666551716,7.90394259,132.7,132.63,22.48865047]
[1763666551918,7.90394259,132.7,132.65,7.90394259]
[1763666552214,0.67,132.69,132.65,7.90394259]
[1763666552387,51.84,132.71,132.67,7.90394259]
[1763666552589,52.51,132.71,132.67,7.90394259]
[1763666552887,52.51,132.71,132.68,7.90394259]
[1763666552888,2.51,132.71,132.68,7.90394259]
[1763666553305,0.67,132.7,132.65,0.71]
[1763666553522,0.67,132.7,132.67,7.90394259]
[1763666553810,0.67,132.7,132.65,7.90394259]
[1763666555025,0.67,132.7,132.67,7.90394259]
[1763666555315,0.67,132.72,132.68,7.90394259]
[1763666555503,0.67,132.72,132.69,7.90394259]
[1763666555704,1.84,132.74,132.69,7.90394259]
[1763666556003,0.67,132.73,132.7,7.90394259]
[1763666556516,0.67,132.73,132.69,7.90394259]
[1763666557225,58.57394259,132.73,132.67,61.0]
[1763666557424,50.67,132.73,132.68,7.90394259]
[1763666557593,0.67,132.72,132.68,7.90394259]
[1763666557792,4.61051271,132.72,132.68,7.90394259]
[1763666558197,0.67,132.71,132.68,7.90394259]
[1763666558386,50.67,132.71,132.66,7.90394259]
[1763666558590,50.67,132.71,132.67,7.90394259]
[1763666558826,0.67,132.7,132.67,7.90394259]
[1763666559794,0.67,132.7,132.63,22.23978211]
[1763666560119,0.67,132.7,132.66,7.90394259]
[1763666560287,0.67,132.7,132.66,68.90394259]
[1763666560718,0.67,132.7,132.67,7.90394259]
[1763666561219,4.61051271,132.72,132.68,7.90394259]
[1763666561444,0.67,132.71,132.68,7.90394259]
[1763666562293,0.67,132.71,132.66,61.0]
[1763666562596,0.67,132.71,132.68,7.90394259]
[1763666562994,3.94051271,132.72,132.68,163.6]
[1763666563193,0.67,132.72,132.68,163.6]
[1763666563402,0.67,132.72,132.7,7.90394259]
[1763666563619,0.67,132.72,132.7,68.90394259]
[1763666564131,0.67,132.72,132.7,61.0]
[1763666564315,7.90394259,132.71,132.64,61.0]
[1763666564517,1.84,132.7,132.64,68.90394259]
[1763666564699,10.41394259,132.7,132.64,68.90394259]
[1763666564901,0.67,132.69,132.64,68.90394259]
[1763666565095,0.67,132.69,132.64,7.90394259]
[1763666565299,0.67,132.69,132.62,7.90394259]
[1763666565300,50.0,132.68,132.62,7.90394259]
[1763666565499,0.67,132.67,132.63,7.90394259]
[1763666565825,0.67,132.67,132.65,7.90394259]
[1763666565997,0.67,132.67,132.61,0.71]
[1763666566191,0.67,132.69,132.64,7.90394259]
[1763666566444,0.67,132.69,132.65,7.90394259]
[1763666566606,0.67,132.69,132.64,7.90394259]
[1763666567301,0.67,132.69,132.65,7.90394259]
[1763666568209,0.67,132.69,132.61,61.0]
[1763666568411,0.67,132.69,132.64,7.90394259]
[1763666568804,0.67,132.69,132.64,12.38322234]
[1763666569202,0.67,132.69,132.64,0.71]
[1763666569403,0.67,132.69,132.66,12.38322234]
[1763666569637,51.84,132.7,132.65,0.71]
[1763666569934,51.84,132.7,132.66,12.38322234]
[1763666569935,52.51,132.7,132.66,12.38322234]
[1763666570230,0.67,132.69,132.65,0.71]
[1763666570434,0.67,132.69,132.62,6.31519504]
[1763666570626,0.67,132.69,132.65,12.38322234]
[1763666571014,0.67,132.69,132.66,12.38322234]
[1763666572536,0.67,132.69,132.67,12.38322234]
[1763666572720,0.67,132.69,132.67,61.0]
[1763666576921,3.93977344,132.75,132.68,13.06322234]
[1763666577140,0.69,132.75,132.72,12.38322234]
[1763666577443,0.1,132.77,132.72,12.38322234]
[1763666577444,0.69,132.74,132.72,12.38322234]
[1763666577943,0.69,132.74,132.71,12.38322234]
[1763666578645,52.53,132.74,132.67,2.52]
[1763666578817,52.53,132.74,132.7,12.38322234]
[1763666579018,0.69,132.73,132.71,12.38322234]
[1763666581047,1.84,132.74,132.72,12.38322234]
[1763666581346,0.69,132.75,132.73,12.38322234]
[1763666581527,5.87970547,132.77,132.74,12.38322234]
[1763666581842,0.69,132.76,132.74,12.38322234]
[1763666582014,0.69,132.76,132.74,73.38322234]
[1763666582219,0.69,132.76,132.74,61.0]
[1763666582440,0.69,132.76,132.74,73.38322234]
[1763666585025,50.69,132.76,132.71,61.0]
[1763666585243,0.69,132.75,132.72,12.38322234]
[1763666585454,0.69,132.75,132.73,12.38322234]
[1763666586130,6.56970547,132.77,132.74,12.38322234]
[1763666586322,0.1,132.77,132.74,0.68]
[1763666586523,0.1,132.77,132.75,12.38322234]
[1763666586965,0.1,132.77,132.76,13.06322234]
[1763666587731,54.03737059,132.84,132.76,13.06322234]
[1763666587732,4.03737059,132.84,132.76,13.06322234]
[1763666588031,0.69,132.83,132.81,12.38322234]
[1763666588726,0.69,132.83,132.8,12.38322234]
[1763666589049,50.0,132.82,132.78,12.38322234]
[1763666589246,50.0,132.8,132.76,12.38322234]
[1763666589449,0.69,132.79,132.76,12.38322234]
[1763666590032,50.0,132.8,132.77,12.38322234]
[1763666590225,50.69,132.8,132.78,12.38322234]
[1763666591034,0.69,132.8,132.79,12.38322234]
[1763666591463,0.69,132.82,132.79,12.38322234]
[1763666593644,50.0,132.83,132.81,12.38322234]
[1763666593951,50.0,132.83,132.8,12.38322234]
[1763666594154,50.69,132.83,132.8,12.38322234]
[1763666594732,50.69,132.83,132.78,0.68]
[1763666594933,50.69,132.83,132.79,12.38322234]
[1763666594934,0.69,132.82,132.79,12.38322234]
[1763666595261,0.69,132.82,132.77,0.68]
[1763666595448,0.69,132.82,132.8,12.38322234]
[1763666595756,0.69,132.82,132.79,12.38322234]
[1763666596142,50.0,132.83,132.8,12.38322234]
[1763666596340,50.69,132.83,132.8,12.38322234]
[1763666596749,0.69,132.82,132.78,12.38322234]
[1763666596953,0.69,132.82,132.79,12.38322234]
[1763666597163,4.03737059,132.84,132.81,12.38322234]
[1763666597333,0.1,132.84,132.83,12.38322234]
[1763666597850,0.1,132.84,132.83,74.26322234]
[1763666598035,0.1,132.84,132.83,13.06322234]
[1763666598437,0.1,132.85,132.83,13.06322234]
[1763666598662,0.1,132.85,132.84,2.52]
[1763666598882,0.1,132.85,132.84,14.90322234]
[1763666599039,0.1,132.86,132.84,27.28644468]
[1763666599235,0.1,132.86,132.85,13.06322234]
[1763666601340,0.1,132.89,132.85,12.38322234]
[1763666601549,0.1,132.89,132.88,12.38322234]
[1763666602046,0.1,132.89,132.88,13.10322234]
[1763666602761,0.1,132.89,132.88,0.72]
[1763666603148,0.1,132.89,132.88,13.10322234]
[1763666603863,0.1,132.9,132.88,13.10322234]
[1763666604060,0.1,132.9,132.89,13.10322234]
[1763666604464,0.1,132.92,132.89,13.10322234]
[1763666604465,0.1,132.92,132.9,61.92]
[1763666604669,0.1,132.94,132.91,26.60644468]
[1763666604836,0.1,132.94,132.93,24.76644468]
[1763666605040,0.1,132.94,132.93,85.96644468]
[1763666605362,0.1,132.94,132.93,86.68644468]
[1763666605557,0.1,132.94,132.93,189.28644468]
[1763666606655,0.2,133.0,132.93,189.28644468]
[1763666606863,0.2,133.0,132.94,13.10322234]
[1763666607359,0.2,133.0,132.94,176.90322234]
[1763666607540,0.2,133.0,132.99,12.38322234]
[1763666607740,0.2,133.0,132.99,14.22322234]
[1763666608159,0.2,133.0,132.99,1.84]
[1763666608346,0.2,133.0,132.99,14.22322234]
[1763666608545,0.2,133.0,132.99,1.84]
[1763666608741,0.2,133.0,132.99,14.22322234]
[1763666609959,0.2,133.0,132.99,12.38322234]
[1763666610553,0.2,133.0,132.96,2.56]
[1763666610866,0.2,133.0,132.99,12.38322234]
[1763666611275,0.2,133.0,132.99,13.03322234]
[1763666611573,0.2,133.0,132.96,1.84]
[1763666611574,0.89,133.0,132.96,1.84]
[1763666611765,0.89,133.0,132.99,12.38322234]
[1763666612274,0.2,133.0,132.99,12.38322234]
[1763666612481,0.89,133.0,132.96,1.84]
[1763666612651,0.89,133.0,132.99,12.38322234]
[1763666612850,0.69,132.99,132.97,12.38322234]
[1763666613052,0.69,132.99,132.96,1.84]
[1763666613250,0.69,132.99,132.92,2.49]
[1763666613251,13.07322234,132.99,132.92,2.49]
[1763666613490,0.69,132.99,132.97,12.38322234]
[1763666613665,0.2,133.0,132.97,12.38322234]
[1763666613666,0.2,133.0,132.98,12.38322234]
[1763666613852,0.89,133.0,132.95,0.65]
[1763666614060,0.69,132.99,132.98,12.38322234]
[1763666614276,0.69,132.99,132.97,12.38322234]
[1763666614672,0.69,132.99,132.92,2.49]
[1763666614872,0.69,132.99,132.96,12.38322234]
[1763666615079,0.69,132.99,132.97,12.38322234]
[1763666615269,0.69,132.99,132.92,1.84]
[1763666615465,50.0,132.98,132.94,12.38322234]
[1763666615679,50.0,132.98,132.95,12.38322234]
[1763666615859,0.69,132.98,132.96,12.38322234]
[1763666616856,0.69,132.98,132.97,12.38322234]
[1763666617290,0.69,132.98,132.96,12.38322234]
[1763666617695,0.69,132.98,132.92,0.65]
[1763666618062,0.69,132.98,132.96,12.38322234]
[1763666618300,0.69,132.98,132.95,12.38322234]
[1763666618996,0.69,132.98,132.96,12.38322234]
[1763666619183,0.69,132.98,132.9,1.84]
[1763666619184,0.69,132.98,132.95,12.38322234]
[1763666619382,50.69,132.98,132.93,12.38322234]
[1763666619575,50.69,132.98,132.95,12.38322234]
[1763666619576,0.69,132.97,132.95,12.38322234]
[1763666619776,0.69,132.97,132.96,12.38322234]
[1763666620388,0.69,132.97,132.95,12.38322234]
[1763666620571,0.69,132.97,132.96,12.38322234]
[1763666620996,0.69,132.97,132.91,0.65]
[1763666621294,0.69,132.97,132.96,12.38322234]
[1763666621475,0.2,133.0,132.96,12.38322234]
[1763666621677,0.69,132.99,132.97,12.38322234]
[1763666621891,0.69,132.99,132.98,12.38322234]
[1763666622288,0.2,133.0,132.98,12.38322234]
[1763666622489,0.89,133.0,132.95,0.65]
[1763666622793,0.89,133.0,132.99,12.38322234]
[1763666623168,0.2,133.0,132.99,12.38322234]
[1763666624885,0.2,133.0,132.99,13.03322234]
[1763666625098,0.2,133.01,132.99,25.41644468]
[1763666625396,0.2,133.01,132.97,1.84]
[1763666625397,0.2,133.01,133.0,13.03322234]
[1763666625698,0.2,133.01,133.0,12.38322234]
[1763666626088,0.2,133.01,133.0,13.03322234]
[1763666626690,0.2,133.01,133.0,12.38322234]
[1763666628988,0.2,133.01,133.0,74.23322234]
[1763666629206,0.2,133.01,133.0,0.65]
[1763666629411,0.2,133.01,133.0,12.38322234]
[1763666629708,0.2,133.01,132.98,0.65]
[1763666629887,0.2,133.01,133.0,12.38322234]
[1763666630791,0.2,133.01,133.0,7.85685943]
[1763666630990,0.2,133.01,132.98,0.68]
[1763666631189,0.2,133.01,132.97,24.3258775]
[1763666631537,0.2,133.01,133.0,7.85685943]
[1763666632278,0.2,133.01,132.97,25.0058775]
[1763666632500,0.92,133.01,133.0,7.85685943]
[1763666632703,0.92,133.01,132.97,24.3258775]
[1763666632895,0.92,133.01,133.0,7.85685943]
[1763666633088,0.2,133.01,133.0,7.85685943]
[1763666633706,0.92,133.01,132.99,7.85685943]
[1763666634018,0.92,133.01,132.97,7.85685943]
[1763666634215,0.72,133.0,132.97,7.85685943]
[1763666635338,0.72,133.0,132.94,1.84]
[1763666635615,0.72,133.0,132.99,7.85685943]
[1763666635819,0.72,133.0,132.98,7.85685943]
[1763666635997,0.72,133.0,132.97,7.85685943]
[1763666636195,0.72,133.0,132.96,7.85685943]
[1763666636426,0.72,133.0,132.99,7.85685943]
[1763666636601,0.2,133.01,132.99,7.85685943]
[1763666636802,0.2,133.01,133.0,7.85685943]
[1763666637317,0.92,133.01,133.0,7.85685943]
[1763666638251,0.2,133.01,133.0,7.85685943]
[1763666638522,0.2,133.01,133.0,8.53685943]
[1763666638832,0.2,133.01,132.99,1.84]
[1763666639007,0.2,133.01,133.0,7.85685943]
[1763666640426,0.2,133.04,133.0,8.38685943]
[1763666640604,0.92,133.04,132.99,4.85284224]
[1763666640803,0.92,133.04,133.03,7.85685943]
[1763666641428,0.92,133.04,132.99,1.84]
[1763666641628,0.72,133.03,132.99,1.84]
[1763666641829,0.72,133.03,132.94,22.60653328]
[1763666642032,0.72,133.03,133.0,7.85685943]
[1763666642237,0.72,133.03,132.96,7.85685943]
[1763666642238,0.72,133.03,132.95,1.84]
[1763666642530,50.0,133.02,132.99,7.85685943]
[1763666642698,0.72,133.01,132.96,7.85685943]
[1763666643531,52.04,133.04,132.97,0.53]
[1763666643707,0.72,133.03,133.0,7.85685943]
[1763666644122,50.0,133.02,132.95,1.84]
[1763666644328,50.0,133.02,132.98,7.85685943]
[1763666644510,0.72,133.01,132.98,7.85685943]
[1763666644724,0.72,133.01,132.99,7.85685943]
[1763666645113,0.72,133.01,132.98,7.85685943]
[1763666645623,50.0,133.0,132.95,1.84]
[1763666645941,57.85685943,133.0,132.95,7.85685943]
[1763666646109,84.65685942,133.04,132.94,7.85685943]
[1763666646110,50.0,132.98,132.94,7.85685943]
[1763666646561,0.72,132.97,132.89,1.84]
[1763666647036,50.0,132.96,132.93,7.85685943]
[1763666647202,0.72,132.95,132.89,1.84]
[1763666647408,0.72,132.95,132.94,7.85685943]
[1763666649534,0.72,132.95,132.92,7.85685943]
[1763666649714,50.0,132.94,132.92,7.85685943]
[1763666650226,0.72,132.93,132.92,7.85685943]
[1763666651433,0.72,132.93,132.91,7.85685943]
[1763666651629,50.0,132.92,132.9,7.85685943]
[1763666652036,0.72,132.91,132.85,2.37]
[1763666652232,0.72,132.91,132.9,7.85685943]
[1763666652746,50.0,132.92,132.9,7.85685943]
[1763666652965,50.0,132.99,132.91,7.85685943]
[1763666653166,0.72,132.95,132.88,7.85685943]
[1763666653467,0.72,132.95,132.94,7.85685943]
[1763666654255,50.72,132.95,132.94,7.85685943]
[1763666655158,50.72,132.95,132.88,7.85685943]
[1763666655159,50.72,132.95,132.93,7.85685943]
[1763666655337,0.72,132.94,132.92,7.85685943]
[1763666655857,0.72,132.94,132.93,7.85685943]
[1763666656602,50.0,132.93,132.92,7.85685943]
[1763666656758,50.0,132.93,132.9,7.85685943]
[1763666656927,0.72,132.92,132.9,7.85685943]
[1763666658351,0.72,132.92,132.84,23.89567785]
[1763666658352,0.72,132.92,132.91,7.85685943]
[1763666658570,0.72,132.92,132.9,7.85685943]
[1763666658781,0.72,132.92,132.84,1.84]
[1763666658952,50.0,132.91,132.81,0.2]
[1763666659146,50.0,132.89,132.81,0.2]
[1763666659359,50.0,132.89,132.86,7.85685943]
[1763666659679,0.72,132.88,132.87,7.85685943]
[1763666660177,0.72,132.88,132.86,7.85685943]
[1763666661379,0.72,132.88,132.87,7.85685943]
[1763666662050,2.52,132.9,132.87,7.85685943]
[1763666662248,1.84,132.9,132.89,7.85685943]
[1763666662474,1.84,132.9,132.88,7.85685943]
[1763666662658,1.84,132.9,132.81,0.2]
[1763666662857,0.68,132.89,132.85,7.85685943]
[1763666663586,0.68,132.89,132.86,7.85685943]
[1763666664882,0.68,132.89,132.81,0.2]
[1763666664883,8.53685943,132.89,132.81,0.2]
[1763666665079,50.68,132.89,132.84,7.85685943]
[1763666665260,50.68,132.89,132.85,7.85685943]
[1763666665261,0.68,132.88,132.85,7.85685943]
[1763666665480,0.68,132.88,132.84,7.85685943]
[1763666665675,8.53685943,132.88,132.82,7.85685943]
[1763666665873,57.85685943,132.87,132.82,61.2]
[1763666666188,0.68,132.86,132.83,7.85685943]
[1763666667398,50.0,132.89,132.84,7.85685943]
[1763666667399,50.68,132.89,132.84,7.85685943]
[1763666667575,0.68,132.88,132.85,7.85685943]
[1763666668092,0.68,132.88,132.87,7.85685943]
[1763666668285,1.84,132.91,132.87,7.85685943]
[1763666668286,2.52,132.91,132.87,7.85685943]
[1763666668586,0.68,132.93,132.9,7.85685943]
[1763666668993,8.53685943,132.93,132.88,7.85685943]
[1763666669597,0.68,132.92,132.88,7.85685943]
[1763666669895,57.85685943,132.91,132.86,7.85685943]
[1763666670201,57.85685943,132.91,132.85,163.8]
[1763666670202,57.85685943,132.91,132.85,69.05685943]
[1763666670378,0.7,132.9,132.86,7.85685943]
[1763666671393,0.7,132.9,132.87,7.85685943]
[1763666671773,0.7,132.9,132.86,7.85685943]
[1763666672681,0.7,132.9,132.85,69.05685943]
[1763666673395,8.55685943,132.9,132.85,69.05685943]
[1763666673696,7.85685943,132.88,132.85,61.2]
[1763666673992,7.85685943,132.88,132.83,70.89685943]
[1763666674193,0.7,132.87,132.83,70.89685943]
[1763666674492,0.7,132.87,132.83,63.04]
[1763666674698,8.55685943,132.87,132.83,63.04]
[1763666674992,0.7,132.86,132.83,1.84]
[1763666675374,8.55685943,132.88,132.83,7.85685943]
[1763666675577,0.7,132.87,132.83,7.85685943]
[1763666676774,2.54,132.9,132.81,61.4]
[1763666676970,2.54,132.9,132.86,7.85685943]
[1763666677173,10.39685943,132.9,132.85,7.85685943]
[1763666677611,0.7,132.89,132.86,7.85685943]
[1763666677770,0.7,132.89,132.81,164.0]
[1763666678071,0.7,132.89,132.85,7.85685943]
[1763666678712,0.7,132.89,132.81,164.0]
[1763666678713,8.55685943,132.89,132.84,7.85685943]
[1763666678893,7.85685943,132.87,132.81,164.0]
[1763666679079,7.85685943,132.86,132.81,69.25685943]
[1763666679273,8.55685943,132.86,132.81,69.25685943]
[1763666679494,0.7,132.85,132.81,69.25685943]
[1763666680097,50.7,132.87,132.82,7.85685943]
[1763666680297,50.7,132.89,132.84,7.85685943]
[1763666680499,58.55685943,132.89,132.84,7.85685943]
[1763666680702,0.7,132.89,132.85,7.85685943]
[1763666681408,8.55685943,132.89,132.84,7.85685943]
[1763666681578,58.55685943,132.89,132.84,7.85685943]
[1763666681774,0.7,132.88,132.84,7.85685943]
[1763666681974,8.55685943,132.88,132.83,7.85685943]
[1763666682580,0.7,132.88,132.83,7.35685943]
[1763666682781,0.7,132.87,132.81,164.0]
[1763666683104,8.55685943,132.88,132.83,7.85685943]
[1763666683413,0.7,132.88,132.84,7.85685943]
[1763666683603,0.7,132.88,132.84,69.05685943]
[1763666683984,1.84,132.9,132.84,69.05685943]
[1763666684182,0.7,132.93,132.88,7.85685943]
[1763666684400,8.55685943,132.93,132.88,69.05685943]
[1763666684794,8.55685943,132.92,132.88,61.2]
[1763666685119,0.7,132.92,132.88,69.05685943]
[1763666685281,0.7,132.91,132.88,69.05685943]
[1763666685707,0.7,132.91,132.88,61.2]
[1763666686628,0.7,132.91,132.85,104.44]
[1763666686629,8.55685943,132.91,132.86,7.85685943]
[1763666686989,0.7,132.9,132.86,7.85685943]
[1763666687194,0.7,132.9,132.86,69.05685943]
[1763666687921,7.85685943,132.91,132.86,69.05685943]
[1763666688111,11.79138945,132.93,132.85,1.84]
[1763666688312,0.7,132.91,132.87,7.85685943]
[1763666688519,0.7,132.91,132.88,7.85685943]
[1763666689097,0.7,132.91,132.85,1.84]
[1763666689411,0.7,132.91,132.87,7.85685943]
[1763666690717,8.55685943,132.91,132.86,7.85685943]
[1763666690896,13.0410438,132.91,132.86,12.3410438]
[1763666691095,50.0,132.92,132.85,1.84]
[1763666691096,13.0510438,132.9,132.85,14.1810438]
[1763666691643,0.71,132.89,132.85,14.1810438]
[1763666692499,13.0510438,132.89,132.84,12.3410438]
[1763666692917,0.71,132.88,132.84,12.3410438]
[1763666693320,0.71,132.88,132.85,12.3410438]
[1763666693636,0.71,132.88,132.84,12.3410438]
[1763666694909,0.71,132.88,132.85,12.3410438]
[1763666695108,0.71,132.91,132.87,12.3410438]
[1763666695304,0.71,132.91,132.88,12.3410438]
[1763666695526,0.71,132.91,132.87,12.3410438]
[1763666695730,0.71,132.91,132.85,6.32030887]
[1763666695921,0.71,132.91,132.87,12.3410438]
[1763666696239,0.71,132.91,132.88,12.3410438]
[1763666696415,0.71,132.93,132.9,12.3410438]
[1763666696605,50.0,132.95,132.91,12.3410438]
[1763666696812,0.71,132.94,132.91,12.3410438]
[1763666697028,64.1810438,132.97,132.92,12.3410438]
[1763666697219,0.71,132.96,132.92,12.3410438]
[1763666697415,0.71,132.96,132.93,12.3410438]
[1763666697618,0.71,132.96,132.9,1.84]
[1763666697822,13.0510438,132.96,132.91,12.3410438]
[1763666698036,0.71,132.96,132.92,12.3410438]
[1763666698206,62.3410438,132.97,132.87,8.34554428]
[1763666698207,63.0510438,132.95,132.88,6.32030887]
[1763666698409,12.3410438,132.94,132.89,12.3410438]
[1763666698608,13.0510438,132.94,132.89,12.3410438]
[1763666698820,0.71,132.93,132.89,12.3410438]
[1763666699640,0.71,132.93,132.9,12.3410438]
[1763666699945,0.71,132.96,132.92,12.3410438]
[1763666700438,50.0,132.95,132.91,12.3410438]
[1763666700645,62.3410438,132.95,132.9,12.3410438]
[1763666700849,0.71,132.94,132.87,8.16030887]
[1763666701015,13.0510438,132.94,132.89,12.3410438]
[1763666701217,13.0510438,132.94,132.87,8.16030887]
[1763666701417,0.71,132.94,132.91,12.3410438]
[1763666701750,0.71,132.94,132.92,12.3410438]
[1763666702040,0.71,132.94,132.91,73.5410438]
[1763666702226,0.71,133.01,132.93,12.3410438]
[1763666702434,50.0,133.02,132.93,67.52030887]
[1763666702435,0.71,133.0,132.93,67.52030887]
[1763666702631,63.0510438,133.0,132.95,12.3410438]
[1763666702811,12.3410438,132.99,132.94,1.84]
[1763666703010,12.3410438,132.96,132.91,1.84]
[1763666703243,12.3410438,132.96,132.91,14.1810438]
[1763666703421,0.71,132.96,132.9,1.84]
[1763666703619,50.0,133.01,132.95,12.3410438]
[1763666703846,13.0510438,133.0,132.95,12.3410438]
[1763666704140,62.3410438,132.97,132.9,61.2]
[1763666704338,12.3410438,132.96,132.91,14.1810438]
[1763666704645,13.0510438,132.96,132.91,14.1810438]
[1763666704812,0.71,132.95,132.91,14.1810438]
[1763666705342,0.71,132.95,132.92,12.3410438]
[1763666705721,50.71,132.97,132.93,12.3410438]
[1763666706120,12.3410438,132.98,132.94,12.3410438]
[1763666706442,12.3410438,132.98,132.91,1.84]
[1763666706443,13.0510438,133.0,132.96,12.3410438]
[1763666706681,0.71,132.99,132.96,12.3410438]
[1763666706811,0.71,132.99,132.95,12.3410438]
[1763666707146,62.3410438,132.98,132.93,12.3410438]
[1763666707338,50.0,132.98,132.95,12.3410438]
[1763666707536,50.0,133.0,132.96,12.3410438]
[1763666707729,50.71,133.0,132.96,73.5410438]
[1763666707914,0.71,132.99,132.96,73.5410438]
[1763666708316,51.84,133.02,132.97,12.3410438]
[1763666708518,13.0510438,133.01,132.96,73.5410438]